bitfinex/quotes_BTCUSD_20241128
["timestamp","ask_amount","ask_price","bid_price","bid_amount"]
[1732762176442,0.20781921,96178.0,96168.0,0.00092486]
[1732762176661,0.22848282,96178.0,96166.0,0.00092486]
[1732762176877,0.22848282,96178.0,96154.0,0.02033035]
[1732762176878,0.103998,96155.0,96154.0,0.02033035]
[1732762177119,0.103998,96155.0,96135.0,0.34793382]
[1732762177120,0.104006,96148.0,96137.0,0.104017]
[1732762177334,0.10284521,96154.0,96138.0,0.01240778]
[1732762177568,0.10284521,96154.0,96133.0,0.01240976]
[1732762177818,0.10284521,96154.0,96136.0,0.208037]
[1732762178052,0.10284521,96154.0,96140.0,0.104014]
[1732762178265,0.10284521,96154.0,96132.0,0.2192028]
[1732762178266,0.10401,96145.0,96132.0,0.0011578]
[1732762178489,0.10284521,96145.0,96133.0,0.104021]
[1732762178700,0.10284521,96145.0,96133.0,0.20896928]
[1732762178918,0.10284521,96145.0,96138.0,0.15]
[1732762179158,0.10284521,96145.0,96137.0,0.15]
[1732762179365,0.10284521,96145.0,96136.0,0.104018]
[1732762179565,0.10384521,96145.0,96137.0,0.254017]
[1732762179781,0.10384521,96145.0,96137.0,0.15]
[1732762180003,0.10284521,96145.0,96137.0,0.15]
[1732762180287,0.10284521,96145.0,96138.0,0.00092631]
[1732762180742,0.10384521,96145.0,96138.0,0.10494331]
[1732762180956,0.10384521,96145.0,96138.0,0.20896031]
[1732762181175,0.10384521,96145.0,96138.0,0.00092631]
[1732762181405,0.10401,96144.0,96132.0,0.0011578]
[1732762181620,0.10384521,96145.0,96132.0,0.0011578]
[1732762181839,0.10384521,96145.0,96134.0,0.104021]
[1732762182059,0.20785521,96145.0,96135.0,0.00092632]
[1732762182550,0.10384521,96145.0,96135.0,0.00092632]
[1732762182774,0.10384521,96145.0,96137.0,0.104018]
[1732762183018,0.10384521,96145.0,96138.0,0.00092632]
[1732762183019,0.10284521,96145.0,96138.0,0.00092632]
[1732762183229,0.10384521,96145.0,96138.0,0.00092632]
[1732762183437,0.10384521,96145.0,96136.0,0.00092631]
[1732762183663,0.10284521,96145.0,96136.0,0.00092631]
[1732762184093,0.10284521,96145.0,96136.0,0.10494531]
[1732762184512,0.10284521,96145.0,96136.0,0.00092631]
[1732762184720,0.10284521,96145.0,96135.0,0.00092632]
[1732762185148,0.10284521,96145.0,96135.0,0.10494532]
[1732762186468,0.10229395,96145.0,96135.0,0.10494532]
[1732762186712,0.10229395,96145.0,96135.0,0.00092632]
[1732762186945,0.10401,96144.0,96136.0,0.00092633]
[1732762187151,0.10401,96144.0,96132.0,0.0011578]
[1732762187360,0.10401,96144.0,96132.0,0.1051808]
[1732762187570,0.10401,96144.0,96132.0,0.0011578]
[1732762187838,0.25465521,96144.0,96132.0,0.0011578]
[1732762188741,0.33445521,96144.0,96132.0,0.0011578]
[1732762190272,0.25465521,96144.0,96133.0,0.00092641]
[1732762190724,0.25565521,96144.0,96133.0,0.10494841]
[1732762190950,0.25465521,96144.0,96133.0,0.00092641]
[1732762191180,0.26065521,96144.0,96143.0,0.0018578]
[1732762191652,0.25465521,96144.0,96143.0,0.0008578]
[1732762191882,0.25865521,96144.0,96143.0,0.0008578]
[1732762192204,0.004,96144.0,96143.0,0.0008578]
[1732762192646,0.287807,96151.0,96143.0,0.0008578]
[1732762192647,0.104007,96147.0,96143.0,0.0008578]
[1732762192906,0.10284521,96146.0,96143.0,0.0008578]
[1732762193152,0.002,96144.0,96143.0,0.0008578]
[1732762194075,0.10284521,96146.0,96143.0,0.0008578]
[1732762194357,0.10401,96144.0,96143.0,0.0008578]
[1732762195031,0.001,96144.0,96143.0,0.0008578]
[1732762195500,0.10501,96144.0,96143.0,0.0008578]
[1732762195728,0.001,96144.0,96143.0,0.0008578]
[1732762195962,0.10501,96144.0,96143.0,0.0008578]
[1732762196202,0.25525521,96144.0,96143.0,0.0008578]
[1732762196885,0.33095521,96144.0,96143.0,0.0008578]
[1732762200587,0.20785521,96144.0,96143.0,0.0008578]
[1732762201748,0.104012,96143.0,96133.0,0.10063285]
[1732762202001,0.10384521,96144.0,96133.0,0.00092651]
[1732762202455,0.20785621,96144.0,96126.0,0.00092641]
[1732762202684,0.20785621,96144.0,96125.0,0.16]
[1732762202685,0.20785621,96144.0,96134.0,0.104021]
[1732762202910,0.104012,96143.0,96135.0,0.00092641]
[1732762203392,0.208023,96143.0,96126.0,0.20806]
[1732762203605,0.10284521,96144.0,96129.0,0.00092644]
[1732762203824,0.10284521,96144.0,96130.0,0.00777214]
[1732762204040,0.10284521,96144.0,96131.0,0.00092641]
[1732762204259,0.10284521,96144.0,96132.0,0.00869855]
[1732762204260,0.104016,96139.0,96132.0,0.00869855]
[1732762204501,0.0017158,96145.0,96119.0,0.16]
[1732762204502,0.10284521,96138.0,96119.0,0.16]
[1732762204739,0.104021,96135.0,96127.0,0.00092661]
[1732762204969,0.104021,96135.0,96128.0,0.00777663]
[1732762205179,0.104021,96134.0,96127.0,0.00777663]
[1732762205401,0.104021,96134.0,96125.0,0.15]
[1732762205621,0.208039,96136.0,96126.0,0.104029]
[1732762205622,0.104019,96136.0,96126.0,0.104029]
[1732762206105,0.10284521,96138.0,96125.0,0.15]
[1732762206311,0.10402,96135.0,96124.0,0.15]
[1732762206523,0.10402,96135.0,96126.0,0.10403]
[1732762206753,0.104018,96137.0,96128.0,0.104027]
[1732762206981,0.20801,96150.0,96133.0,0.104022]
[1732762206982,0.104011,96144.0,96133.0,0.104022]
[1732762207255,0.10284521,96143.0,96135.0,0.104019]
[1732762207504,0.0017158,96145.0,96135.0,0.208039]
[1732762207748,0.10456101,96145.0,96137.0,0.208036]
[1732762207969,0.10456101,96145.0,96138.0,0.208034]
[1732762208214,0.104011,96144.0,96137.0,0.00092636]
[1732762208439,0.10456101,96145.0,96134.0,0.00092639]
[1732762208655,0.10456101,96145.0,96135.0,0.00092636]
[1732762208656,0.208021,96144.0,96135.0,0.00092636]
[1732762208873,0.104012,96143.0,96135.0,0.00092636]
[1732762209100,0.104011,96144.0,96135.0,0.00092636]
[1732762209335,0.104011,96143.0,96135.0,0.00092636]
[1732762209567,0.104012,96142.0,96134.0,0.00092639]
[1732762209868,0.104011,96144.0,96134.0,0.10402]
[1732762210102,0.104011,96144.0,96134.0,0.10494639]
[1732762210321,0.10456101,96145.0,96134.0,0.00092639]
[1732762210537,0.104012,96143.0,96135.0,0.00092637]
[1732762210985,0.10456101,96145.0,96136.0,0.00092642]
[1732762211218,0.20857001,96145.0,96136.0,0.00092642]
[1732762212395,0.10456101,96145.0,96135.0,0.00092637]
[1732762212607,0.20857001,96145.0,96135.0,0.10494537]
[1732762213493,0.10284521,96144.0,96124.0,0.02098267]
[1732762213765,0.104016,96139.0,96134.0,0.000858]
[1732762213981,0.12463761,96141.0,96134.0,0.000858]
[1732762214436,0.104016,96139.0,96134.0,0.000858]
[1732762214950,0.15272,96135.0,96134.0,0.000858]
[1732762215168,0.25556521,96135.0,96134.0,0.000858]
[1732762216745,0.25556521,96135.0,96134.0,0.002858]
[1732762217193,0.25556521,96135.0,96134.0,0.005858]
[1732762217646,0.25556521,96135.0,96134.0,0.003858]
[1732762219807,0.25556521,96135.0,96134.0,0.002858]
[1732762220253,0.25656521,96135.0,96134.0,0.000858]
[1732762224546,0.33336521,96135.0,96134.0,0.000858]
[1732762227404,0.33508121,96135.0,96134.0,0.000858]
[1732762228816,0.35137048,96135.0,96134.0,0.000858]
[1732762230443,0.17055048,96135.0,96134.0,0.000858]
[1732762230671,0.17055048,96135.0,96134.0,0.083758]
[1732762230672,0.01900527,96135.0,96134.0,0.083758]
[1732762230894,0.002716,96135.0,96134.0,0.083758]
[1732762231636,0.002716,96135.0,96134.0,0.187779]
[1732762231878,0.002716,96135.0,96134.0,0.18870533]
[1732762232571,0.002716,96135.0,96134.0,0.37170533]
[1732762233060,0.002716,96135.0,96134.0,0.71564776]
[1732762233278,0.001716,96135.0,96134.0,0.71564776]
[1732762233729,0.002716,96135.0,96134.0,0.71564776]
[1732762233958,0.001716,96135.0,96134.0,0.71564776]
[1732762234204,0.001716,96135.0,96134.0,0.71964776]
[1732762234449,0.001716,96135.0,96134.0,0.72264776]
[1732762234664,0.001716,96135.0,96134.0,0.95103088]
[1732762234887,0.001716,96135.0,96134.0,0.71753909]
[1732762235109,0.001716,96135.0,96134.0,0.95103015]
[1732762236087,0.001716,96135.0,96134.0,0.71753909]
[1732762236330,0.001716,96135.0,96134.0,0.9509685]
[1732762236547,0.001716,96135.0,96134.0,0.71733257]
[1732762237231,0.001716,96135.0,96134.0,0.95073418]
[1732762238133,0.001716,96135.0,96134.0,0.71733257]
[1732762239011,0.001716,96135.0,96134.0,0.95069189]
[1732762239243,0.001716,96135.0,96134.0,0.71733257]
[1732762240180,0.001716,96135.0,96134.0,0.71819057]
[1732762241374,0.001716,96135.0,96134.0,0.76689057]
[1732762241599,0.0017158,96145.0,96143.0,0.287011]
[1732762243374,0.002716,96144.0,96143.0,0.3802978]
[1732762244557,0.002716,96144.0,96143.0,0.287011]
[1732762245235,0.002716,96144.0,96143.0,0.38027891]
[1732762245463,0.002716,96144.0,96143.0,0.287011]
[1732762245722,0.002716,96144.0,96141.0,0.15]
[1732762245953,0.002716,96144.0,96142.0,0.00092608]
[1732762246177,0.106726,96144.0,96142.0,0.00092608]
[1732762246412,0.002716,96144.0,96141.0,0.15]
[1732762246672,0.002716,96144.0,96136.0,0.104018]
[1732762246919,0.002716,96144.0,96137.0,0.10494322]
[1732762247155,0.001716,96144.0,96137.0,0.00092622]
[1732762247390,0.002716,96144.0,96138.0,0.104016]
[1732762247611,0.001716,96144.0,96138.0,0.0009262]
[1732762248068,0.002716,96144.0,96139.0,0.00092622]
[1732762248294,0.001716,96144.0,96139.0,0.00092622]
[1732762248739,0.00924663,96143.0,96139.0,0.00092622]
[1732762249007,0.001716,96144.0,96136.0,0.104019]
[1732762249249,0.00924394,96142.0,96135.0,0.20804]
[1732762249486,0.001716,96144.0,96137.0,0.104017]
[1732762250151,0.001716,96144.0,96135.0,0.20804]
[1732762250152,0.002716,96144.0,96138.0,0.104016]
[1732762250371,0.002716,96144.0,96136.0,0.104019]
[1732762250372,0.001716,96144.0,96136.0,0.104019]
[1732762250591,0.001716,96144.0,96137.0,0.104017]
[1732762250592,0.00924603,96143.0,96137.0,0.104017]
[1732762250870,0.002716,96144.0,96137.0,0.104017]
[1732762251059,0.001716,96144.0,96137.0,0.104017]
[1732762251279,0.001716,96144.0,96136.0,0.104018]
[1732762251494,0.002716,96144.0,96136.0,0.104018]
[1732762251729,0.00924603,96143.0,96135.0,0.000858]
[1732762251951,0.00924603,96143.0,96135.0,0.208897]
[1732762252202,0.006676,96144.0,96143.0,0.104011]
[1732762252667,0.006676,96144.0,96143.0,0.213911]
[1732762253402,0.006676,96144.0,96135.0,0.09412915]
[1732762253624,0.104012,96143.0,96135.0,0.000858]
[1732762253872,0.11325924,96143.0,96135.0,0.000858]
[1732762254101,0.00924724,96143.0,96135.0,0.000858]
[1732762254780,0.007676,96144.0,96136.0,0.208038]
[1732762255007,0.006676,96144.0,96136.0,0.208038]
[1732762255226,0.006676,96144.0,96141.0,0.104013]
[1732762255448,0.006676,96144.0,96137.0,0.208036]
[1732762255671,0.006676,96144.0,96143.0,0.104011]
[1732762257098,0.007676,96144.0,96143.0,0.104011]
[1732762259158,0.007676,96144.0,96143.0,0.180911]
[1732762259383,0.007676,96144.0,96143.0,0.213911]
[1732762259620,0.007676,96144.0,96143.0,0.55809956]
[1732762259839,0.007676,96144.0,96143.0,0.56855957]
[1732762260295,0.007676,96144.0,96143.0,0.70841456]
[1732762260518,0.006676,96144.0,96143.0,0.56855957]
[1732762260779,0.007676,96144.0,96143.0,0.71541456]
[1732762261215,0.007676,96144.0,96143.0,0.371226]
[1732762261895,0.007676,96144.0,96143.0,0.23137101]
[1732762262814,0.007676,96144.0,96143.0,0.23537101]
[1732762263496,0.007676,96144.0,96143.0,0.375226]
[1732762263719,0.007676,96144.0,96143.0,0.23537101]
[1732762264950,0.007676,96144.0,96143.0,0.375226]
[1732762265407,0.007676,96144.0,96143.0,0.23537101]
[1732762266389,0.007676,96144.0,96143.0,0.72715708]
[1732762267057,0.007676,96144.0,96143.0,0.73730209]
[1732762267305,0.0017158,96145.0,96144.0,0.28701]
[1732762267531,0.0017158,96145.0,96144.0,0.63894108]
[1732762267991,0.0017158,96145.0,96144.0,0.82538856]
[1732762268895,0.0027158,96145.0,96144.0,0.64494108]
[1732762269101,0.0027158,96145.0,96144.0,0.88200316]
[1732762269337,0.0027158,96145.0,96144.0,0.38236686]
[1732762269566,0.0027158,96145.0,96144.0,0.01778708]
[1732762269799,0.20957001,96145.0,96144.0,0.01778708]
[1732762270019,0.20957001,96145.0,96144.0,0.01]
[1732762270020,0.29435967,96145.0,96144.0,0.01]
[1732762271253,0.29435967,96145.0,96135.0,0.000858]
[1732762271254,0.18935067,96145.0,96135.0,0.000858]
[1732762271515,0.10284521,96144.0,96135.0,0.000858]
[1732762271759,0.208023,96143.0,96135.0,0.000858]
[1732762272221,0.104015,96140.0,96135.0,0.000858]
[1732762272450,0.224519,96136.0,96135.0,0.000858]
[1732762272676,0.32736421,96136.0,96135.0,0.000858]
[1732762272915,0.3365974,96136.0,96135.0,0.000858]
[1732762275023,0.374533,96123.0,96122.0,0.0008581]
[1732762275249,0.47737821,96123.0,96122.0,0.0008581]
[1732762275500,0.49650689,96123.0,96122.0,0.0008581]
[1732762276195,0.224551,96106.0,96105.0,0.0008582]
[1732762276409,0.32739621,96106.0,96105.0,0.0008582]
[1732762276678,0.3365188,96106.0,96105.0,0.0008582]
[1732762277567,0.2324678,96106.0,96079.0,0.014403]
[1732762277823,0.49800321,96100.0,96079.0,0.014403]
[1732762278289,0.50707352,96100.0,96079.0,0.014403]
[1732762279472,0.51729624,96100.0,96099.0,0.0018583]
[1732762279691,0.50729624,96100.0,96099.0,0.0018583]
[1732762279918,0.51629624,96100.0,96099.0,0.0018583]
[1732762280140,0.50729624,96100.0,96099.0,0.0018583]
[1732762280414,0.50729624,96100.0,96079.0,0.014403]
[1732762280415,0.104078,96081.0,96079.0,0.014403]
[1732762280933,0.33802321,96081.0,96079.0,0.014403]
[1732762280941,0.34692287,96081.0,96079.0,0.014403]
[1732762282075,0.35092287,96081.0,96079.0,0.014403]
[1732762282294,0.35792287,96081.0,96080.0,0.0018591]
[1732762282507,0.36833107,96081.0,96080.0,0.0018591]
[1732762283621,0.51833107,96081.0,96080.0,0.0018591]
[1732762284531,0.55396732,96081.0,96080.0,0.0018591]
[1732762285040,0.51833107,96081.0,96080.0,0.0018591]
[1732762285261,0.55396732,96081.0,96080.0,0.0018591]
[1732762285495,0.254085,96075.0,96074.0,0.0008581]
[1732762285707,0.39464955,96075.0,96074.0,0.0008581]
[1732762286209,0.40348324,96075.0,96074.0,0.0008581]
[1732762286451,0.56816414,96075.0,96074.0,0.0008581]
[1732762287391,0.4968639,96075.0,96074.0,0.0008581]
[1732762288074,0.385188,96072.0,96071.0,1e-07]
[1732762288287,0.48803321,96072.0,96071.0,1e-07]
[1732762288518,0.56150338,96072.0,96071.0,1e-07]
[1732762288797,0.5338531,96072.0,96071.0,1e-07]
[1732762289017,0.5703358,96072.0,96071.0,1e-07]
[1732762289568,0.5763358,96072.0,96071.0,0.0010001]
[1732762289782,0.54834833,96072.0,96071.0,0.0010001]
[1732762289966,0.5853358,96072.0,96071.0,0.0010001]
[1732762292702,0.58059785,96072.0,96071.0,0.0010001]
[1732762292944,0.51186563,96072.0,96071.0,0.0010001]
[1732762293583,0.54411515,96072.0,96071.0,0.0010001]
[1732762293979,0.51186563,96072.0,96071.0,0.0010001]
[1732762294211,0.58059785,96072.0,96071.0,0.0010001]
[1732762294450,0.54834833,96072.0,96071.0,0.0010001]
[1732762294899,0.58059785,96072.0,96071.0,0.0010001]
[1732762295111,1.20149709,96072.0,96071.0,1e-07]
[1732762295294,1.16739785,96072.0,96071.0,1e-07]
[1732762296003,0.61459785,96072.0,96071.0,1e-07]
[1732762296219,0.61459785,96072.0,96051.0,0.0002]
[1732762296220,0.01,96064.0,96051.0,0.0002]
[1732762296466,0.89720985,96072.0,96051.0,0.0002]
[1732762296467,0.48745321,96054.0,96051.0,0.0002]
[1732762296932,0.56486275,96054.0,96051.0,0.0002]
[1732762298017,0.404615,96047.0,96046.0,3e-07]
[1732762298228,0.404615,96047.0,96038.0,0.0008577]
[1732762298229,0.407624,96039.0,96038.0,0.0008577]
[1732762298444,0.51046921,96039.0,96038.0,0.0008577]
[1732762298668,0.58819317,96039.0,96038.0,0.0008577]
[1732762299138,0.49608831,96039.0,96038.0,0.0008577]
[1732762299628,0.50108831,96039.0,96038.0,0.0008577]
[1732762301189,0.51008831,96039.0,96038.0,0.0008577]
[1732762303637,0.41616766,96039.0,96038.0,0.0008577]
[1732762303849,0.52029166,96039.0,96038.0,0.0008577]
[1732762307922,0.51129166,96039.0,96038.0,0.0008577]
[1732762308170,0.52029166,96039.0,96038.0,0.0008577]
[1732762308631,0.50629166,96039.0,96038.0,0.0008577]
[1732762308845,0.52129166,96039.0,96038.0,0.0008577]
[1732762309293,0.51529166,96039.0,96038.0,0.0008577]
[1732762309751,0.52029166,96039.0,96038.0,0.0008577]
[1732762311126,0.23979166,96039.0,96038.0,0.0008577]
[1732762312268,0.24150946,96039.0,96038.0,0.0008577]
[1732762312512,0.28870946,96039.0,96038.0,0.0008577]
[1732762312934,0.32075918,96039.0,96038.0,0.0008577]
[1732762313149,0.28870946,96039.0,96038.0,0.0008577]
[1732762313572,0.24150946,96039.0,96038.0,0.0008577]
[1732762316274,0.23650946,96039.0,96038.0,0.0008577]
[1732762316493,0.46930946,96039.0,96038.0,0.0008577]
[1732762316719,0.47430946,96039.0,96038.0,0.0008577]
[1732762317171,0.50639005,96039.0,96038.0,0.0008577]
[1732762317396,0.49739005,96039.0,96038.0,0.0008577]
[1732762317618,0.50239005,96039.0,96038.0,0.0008577]
[1732762318074,0.41459005,96039.0,96038.0,0.0008577]
[1732762318525,0.41759005,96039.0,96038.0,0.0008577]
[1732762327846,0.43389477,96039.0,96038.0,0.0008577]
[1732762333434,0.40181418,96039.0,96038.0,0.0008577]
[1732762340159,0.14769018,96039.0,96038.0,0.0008577]
[1732762340400,0.14769018,96039.0,96038.0,0.0813577]
[1732762340401,0.04484497,96039.0,96038.0,0.0813577]
[1732762340575,0.04484497,96039.0,96038.0,0.19328737]
[1732762340576,0.02577184,96039.0,96038.0,0.19328737]
[1732762341318,0.01992115,96039.0,96038.0,0.19328737]
[1732762341523,0.0047178,96039.0,96038.0,0.19328737]
[1732762341740,0.0017178,96039.0,96038.0,0.19328737]
[1732762342157,0.0017178,96039.0,96038.0,0.19428737]
[1732762342391,0.0017178,96039.0,96038.0,0.19528737]
[1732762344862,0.0017178,96039.0,96038.0,0.24518737]
[1732762345719,0.0017178,96039.0,96038.0,0.24418737]
[1732762346183,0.1058418,96039.0,96038.0,0.01066237]
[1732762346415,0.1058418,96039.0,96038.0,0.0028577]
[1732762346625,0.11172693,96039.0,96038.0,0.0028577]
[1732762347290,0.11172693,96039.0,96038.0,0.0008577]
[1732762347526,0.11272693,96039.0,96038.0,0.0028577]
[1732762347742,0.11272693,96039.0,96038.0,0.0008577]
[1732762347965,0.00760293,96039.0,96038.0,0.0008577]
[1732762348225,0.00860293,96039.0,96038.0,0.0008577]
[1732762348452,0.00760293,96039.0,96038.0,0.0008577]
[1732762348699,0.48757214,96039.0,96038.0,0.0008577]
[1732762348923,0.48857214,96039.0,96038.0,0.0028577]
[1732762349139,0.48757214,96039.0,96038.0,0.0028577]
[1732762349356,0.48757214,96039.0,96038.0,0.0008577]
[1732762350668,0.48857214,96039.0,96038.0,0.0008577]
[1732762350879,0.48757214,96039.0,96038.0,0.0008577]
[1732762351305,0.48857214,96039.0,96038.0,0.0008577]
[1732762351521,0.48757214,96039.0,96038.0,0.0008577]
[1732762351995,0.51557214,96039.0,96038.0,0.0008577]
[1732762352201,0.52057214,96039.0,96038.0,7e-07]
[1732762352656,0.70076111,96039.0,96038.0,7e-07]
[1732762352888,0.86745668,96039.0,96038.0,7e-07]
[1732762353332,1.05077866,96039.0,96038.0,7e-07]
[1732762353552,1.06804808,96039.0,96038.0,7e-07]
[1732762353763,0.88272567,96039.0,96038.0,7e-07]
[1732762353994,0.87372567,96039.0,96038.0,7e-07]
[1732762354221,0.88272567,96039.0,96038.0,7e-07]
[1732762354439,0.87372567,96039.0,96038.0,7e-07]
[1732762354668,1.05902095,96039.0,96038.0,7e-07]
[1732762354881,1.06802095,96039.0,96038.0,7e-07]
[1732762355108,1.06970396,96039.0,96038.0,7e-07]
[1732762355359,0.01,96016.0,96011.0,0.0004]
[1732762355583,0.35699821,96012.0,96011.0,0.0004]
[1732762356105,0.3628065,96012.0,96011.0,0.0004]
[1732762356799,0.4905065,96012.0,96011.0,0.0004]
[1732762358003,0.50882602,96012.0,96011.0,0.0004]
[1732762358459,0.51082602,96012.0,96011.0,0.0004]
[1732762358919,0.50882602,96012.0,96011.0,0.0004]
[1732762359376,0.51282602,96012.0,96011.0,0.0012589]
[1732762361724,0.53582602,96012.0,96011.0,0.0012589]
[1732762367011,0.45482602,96012.0,96011.0,0.0012589]
[1732762367893,0.46482602,96012.0,96011.0,0.0012589]
[1732762368103,0.54102602,96012.0,96011.0,0.0012589]
[1732762368330,0.104175,95992.0,95983.0,0.015261]
[1732762368543,0.20702021,95992.0,95983.0,0.015261]
[1732762368777,0.21268712,95992.0,95983.0,0.015261]
[1732762368993,0.23568712,95992.0,95983.0,0.015261]
[1732762370116,0.38568712,95992.0,95983.0,0.015261]
[1732762370566,0.38568712,95992.0,95991.0,0.0014]
[1732762371720,0.39585262,95992.0,95991.0,0.0004]
[1732762372157,0.40485262,95992.0,95991.0,0.0004]
[1732762372659,0.41085262,95992.0,95991.0,0.0004]
[1732762372912,0.46795262,95992.0,95991.0,0.0004]
[1732762373155,0.53815262,95992.0,95991.0,1e-06]
[1732762373369,0.53915262,95992.0,95991.0,1e-06]
[1732762373597,0.54815262,95992.0,95991.0,1e-06]
[1732762374064,0.53915262,95992.0,95991.0,1e-06]
[1732762374291,0.54815262,95992.0,95991.0,1e-06]
[1732762374522,0.58091956,95992.0,95991.0,1e-06]
[1732762374748,0.58691956,95992.0,95991.0,1e-06]
[1732762374975,0.55415262,95992.0,95991.0,1e-06]
[1732762375202,0.53915262,95992.0,95991.0,1e-06]
[1732762375398,0.55715262,95992.0,95991.0,1e-06]
[1732762376786,0.54815262,95992.0,95991.0,1e-06]
[1732762377235,0.54815262,95992.0,95983.0,0.01014599]
[1732762377236,0.287184,95984.0,95983.0,0.01014599]
[1732762377458,0.39002921,95984.0,95983.0,0.01014599]
[1732762377670,0.39595283,95984.0,95983.0,0.01014599]
[1732762378529,0.40495283,95984.0,95983.0,0.01014599]
[1732762378826,0.41395283,95984.0,95983.0,0.01014599]
[1732762379723,0.44592379,95984.0,95983.0,0.01014599]
[1732762379947,0.44592379,95984.0,95983.0,4.3e-07]
[1732762379948,0.65008429,95984.0,95983.0,4.3e-07]
[1732762380409,0.65008429,95984.0,95977.0,0.0008583]
[1732762380410,0.42049,95978.0,95977.0,1.3e-07]
[1732762380638,0.52333521,95978.0,95977.0,1.3e-07]
[1732762380906,0.52946741,95978.0,95977.0,1.3e-07]
[1732762381861,0.54546741,95978.0,95977.0,1.3e-07]
[1732762382090,0.53546741,95978.0,95977.0,1.3e-07]
[1732762383952,0.54546741,95978.0,95977.0,1.3e-07]
[1732762384205,0.01,95972.0,95971.0,4.3e-07]
[1732762384417,0.39234833,95972.0,95971.0,4.3e-07]
[1732762384641,0.39004221,95972.0,95971.0,4.3e-07]
[1732762384871,0.39617216,95972.0,95971.0,4.3e-07]
[1732762385572,1.11317216,95972.0,95971.0,4.3e-07]
[1732762386575,1.16197216,95972.0,95971.0,4.3e-07]
[1732762386810,0.46197216,95972.0,95971.0,4.3e-07]
[1732762387261,0.44497216,95972.0,95971.0,4.3e-07]
[1732762387485,0.45297216,95972.0,95971.0,4.3e-07]
[1732762387713,0.46197216,95972.0,95971.0,4.3e-07]
[1732762390903,0.41317216,95972.0,95971.0,4.3e-07]
[1732762395062,0.54237216,95972.0,95971.0,4.3e-07]
[1732762395272,0.57444135,95972.0,95971.0,0.00085993]
[1732762395954,0.57444135,95972.0,95971.0,9.3e-07]
[1732762396217,0.57444135,95972.0,95962.0,6e-05]
[1732762396218,0.336006,95963.0,95962.0,9.3e-07]
[1732762396431,0.287213,95957.0,95956.0,3e-07]
[1732762396667,0.39005821,95957.0,95956.0,3e-07]
[1732762396885,0.39511602,95957.0,95956.0,3e-07]
[1732762397350,0.42718382,95957.0,95956.0,3e-07]
[1732762397800,0.43618382,95957.0,95956.0,3e-07]
[1732762398303,0.40411602,95957.0,95956.0,3e-07]
[1732762398526,1.10411602,95957.0,95956.0,3e-07]
[1732762398739,0.41111602,95957.0,95956.0,3e-07]
[1732762399846,0.42132245,95957.0,95956.0,3e-07]
[1732762400307,0.4534135,95957.0,95956.0,3e-07]
[1732762400817,0.4434135,95957.0,95956.0,3e-07]
[1732762401055,0.40626464,95957.0,95956.0,3e-07]
[1732762401284,0.42258366,95957.0,95956.0,3e-07]
[1732762401527,0.40626464,95957.0,95956.0,3e-07]
[1732762405208,0.43842276,95957.0,95956.0,3e-07]
[1732762405869,0.40626464,95957.0,95956.0,3e-07]
[1732762406084,0.43843794,95957.0,95956.0,3e-07]
[1732762407904,0.43143794,95957.0,95956.0,3e-07]
[1732762408135,0.44843794,95957.0,95956.0,3e-07]
[1732762408359,0.45015354,95957.0,95956.0,3e-07]
[1732762409265,0.44315354,95957.0,95956.0,3e-07]
[1732762409495,0.45015354,95957.0,95956.0,3e-07]
[1732762410362,1.15015354,95957.0,95956.0,3e-07]
[1732762411969,0.114218,95952.0,95951.0,3e-07]
[1732762412195,0.47404309,95952.0,95951.0,3e-07]
[1732762412427,0.47173651,95952.0,95951.0,3e-07]
[1732762413301,1.17173651,95952.0,95951.0,3e-07]
[1732762414672,1.18073651,95952.0,95951.0,3e-07]
[1732762414891,1.26426599,95952.0,95951.0,3e-07]
[1732762415344,1.18073651,95952.0,95951.0,3e-07]
[1732762415776,0.78502781,95952.0,95951.0,3e-07]
[1732762416005,0.61963304,95952.0,95951.0,3e-07]
[1732762416214,0.48773651,95952.0,95951.0,3e-07]
[1732762416441,0.6266804,95952.0,95951.0,3e-07]
[1732762416674,0.48073651,95952.0,95951.0,3e-07]
[1732762417095,0.48973651,95952.0,95951.0,3e-07]
[1732762417609,0.67503713,95952.0,95951.0,3e-07]
[1732762417823,0.78630949,95952.0,95951.0,3e-07]
[1732762418272,0.88060949,95952.0,95951.0,3e-07]
[1732762418478,0.264229,95942.0,95932.0,0.0003]
[1732762418692,0.42224751,95942.0,95932.0,0.0003]
[1732762419833,1.13024751,95942.0,95932.0,0.0003]
[1732762420919,1.13924751,95942.0,95932.0,0.0003]
[1732762421144,1.14959551,95942.0,95932.0,0.0003]
[1732762421393,1.13959551,95942.0,95932.0,0.0003]
[1732762421607,1.14959551,95942.0,95932.0,0.0003]
[1732762421831,1.11742221,95942.0,95932.0,0.0003]
[1732762422933,0.41742221,95942.0,95932.0,0.0003]
[1732762423187,0.44962314,95942.0,95932.0,0.0003]
[1732762423421,0.43962314,95942.0,95932.0,0.0003]
[1732762424548,0.51492314,95942.0,95932.0,0.0003]
[1732762425448,1.21492314,95942.0,95932.0,0.0003]
[1732762425667,1.3076392,95942.0,95932.0,0.0003]
[1732762426094,1.21492314,95942.0,95932.0,0.0003]
[1732762426781,0.51492314,95942.0,95932.0,0.0003]
[1732762427246,0.43962314,95942.0,95932.0,0.0003]
[1732762428570,0.40742221,95942.0,95932.0,0.0003]
[1732762428790,0.43964247,95942.0,95932.0,0.0003]
[1732762429008,0.40742221,95942.0,95932.0,0.0003]
[1732762429485,0.4396481,95942.0,95932.0,0.0003]
[1732762429717,1.23239328,95942.0,95932.0,0.0003]
[1732762429952,1.1396481,95942.0,95932.0,0.0003]
[1732762430436,1.23241791,95942.0,95932.0,0.0003]
[1732762430649,1.1396481,95942.0,95932.0,0.0003]
[1732762431543,1.23241791,95942.0,95932.0,0.0003]
[1732762431992,1.1396481,95942.0,95932.0,0.0003]
[1732762434074,1.23242721,95942.0,95932.0,0.0003]
[1732762434285,1.1396481,95942.0,95932.0,0.0003]
[1732762435838,0.4396481,95942.0,95932.0,0.0003]
[1732762437860,1.1396481,95942.0,95932.0,0.0003]
[1732762438754,0.4396481,95942.0,95932.0,0.0003]
[1732762441061,0.23442221,95942.0,95941.0,0.0807589]
[1732762441735,0.21742221,95942.0,95941.0,0.0807589]
[1732762442221,0.22642221,95942.0,95941.0,0.0807589]
[1732762442433,0.37642221,95942.0,95941.0,0.0807589]
[1732762442646,0.38442221,95942.0,95941.0,0.0807589]
[1732762444052,0.36742221,95942.0,95941.0,0.0807589]
[1732762444282,0.37342221,95942.0,95941.0,0.0807589]
[1732762444947,0.37142221,95942.0,95941.0,0.0807589]